bitfinex-derivatives/quotes_ETHF0:USTF0_20250105
["timestamp","ask_amount","ask_price","bid_price","bid_amount"]
[1736097137390,2.40610681,3637.0,3636.7,0.99992229]
[1736097137699,2.40610681,3637.0,3636.9,0.99992229]
[1736097138097,2.40610681,3637.0,3636.9,1.24744229]
[1736097138403,2.15858681,3637.0,3636.9,1.24744229]
[1736097138590,2.40609681,3637.0,3636.9,1.24744229]
[1736097139200,0.24751,3637.0,3636.9,1.24744229]
[1736097139599,2.15858681,3637.1,3637.0,0.24751]
[1736097140000,2.15858681,3637.1,3637.0,0.67811]
[1736097140905,0.2475,3637.2,3637.0,0.4306]
[1736097141201,0.2475,3637.2,3637.1,0.99992229]
[1736097142603,0.2475,3637.2,3637.1,1.24743229]
[1736097142900,3.2078,3637.3,3637.1,0.99992229]
[1736097142901,3.4553,3637.3,3637.1,0.99992229]
[1736097143105,0.24752,3636.9,3636.8,1.072]
[1736097143300,0.24752,3636.9,3636.8,2.07192229]
[1736097144305,0.24752,3636.9,3636.8,2.31945229]
[1736097146398,0.8408,3637.2,3636.8,2.31945229]
[1736097146700,1.0883,3637.2,3637.1,0.99992229]
[1736097152699,0.2475,3637.2,3637.1,0.99992229]
[1736097153312,0.2475,3637.2,3637.1,1.43322229]
[1736097157011,0.2475,3637.2,3637.1,1.43088161]
[1736097162018,2.40608681,3637.2,3637.1,1.43088161]
[1736097163111,2.40608681,3637.2,3637.1,1.67839161]
[1736097163314,0.2475,3637.2,3637.1,1.67839161]
[1736097163511,3.24211255,3637.3,3637.1,4.63868161]
[1736097163713,3.24211255,3637.3,3637.2,1.0925]
[1736097164818,2.16032535,3637.5,3637.4,0.24749]
[1736097165018,2.16032535,3637.5,3637.4,1.24741229]
[1736097166413,2.16032535,3637.6,3637.5,0.24748]
[1736097166621,2.16032535,3637.6,3637.5,2.74020229]
[1736097166916,2.16032535,3637.6,3637.5,1.74028]
[1736097167221,2.16032535,3637.6,3637.5,2.74020229]
[1736097173624,2.16032535,3637.7,3637.5,2.49272229]
[1736097173820,2.16032535,3637.7,3637.6,1.24739229]
[1736097177026,2.16032535,3637.8,3637.7,0.24747]
[1736097177323,2.16032535,3637.8,3637.7,1.07697]
[1736097178125,2.16032535,3637.8,3637.4,3.2078]
[1736097178422,0.24747,3637.6,3637.5,0.99992229]
[1736097180431,0.24747,3637.6,3637.5,1.24740229]
[1736097180726,3.48958255,3637.7,3637.5,1.24740229]
[1736097181424,2.16049001,3637.6,3637.5,1.24740229]
[1736097182834,2.16049001,3637.7,3637.6,0.24747]
[1736097184535,2.16049001,3637.8,3637.7,0.24747]
[1736097184830,2.16049001,3637.8,3637.7,1.24739229]
[1736097185527,2.40795001,3637.8,3637.7,0.99992229]
[1736097187031,2.40795001,3637.8,3637.7,1.24739229]
[1736097187233,0.24746,3637.8,3637.7,1.24739229]
[1736097188427,0.24748,3637.5,3637.4,0.4067]
[1736097188635,1.24740229,3637.5,3637.4,0.4067]
[1736097188937,1.66832229,3637.8,3637.3,1.40572229]
[1736097189234,1.66832229,3637.8,3637.5,0.99992229]
[1736097189235,0.6684,3637.8,3637.5,0.99992229]
[1736097189434,0.24747,3637.6,3637.5,0.99992229]
[1736097190228,2.40802576,3637.6,3637.5,0.99992229]
[1736097190626,2.16055576,3637.6,3637.5,0.99992229]
[1736097190832,2.16055576,3637.6,3637.5,1.24740229]
[1736097191634,2.16055576,3637.7,3637.5,1.24740229]
[1736097191834,2.16055576,3637.7,3637.6,0.437]
[1736097192943,2.40802576,3637.7,3637.6,0.437]
[1736097194342,2.16055576,3637.7,3637.6,0.437]
[1736097194639,2.40802576,3637.7,3637.6,0.437]
[1736097194834,2.16055576,3637.7,3637.6,0.437]
[1736097195229,2.40802576,3637.7,3637.6,0.437]
[1736097200140,2.40802576,3637.7,3637.6,0.8741]
[1736097202337,3.90213885,3637.7,3637.6,0.8741]
[1736097204144,0.24747,3637.7,3637.6,0.8741]
[1736097205645,0.24747,3637.7,3637.6,0.4371]
[1736097207747,0.6600263,3637.7,3637.6,0.4371]
[1736097208752,4.98284303,3637.7,3637.6,0.4371]
[1736097210051,4.98284303,3637.7,3637.6,0.68457]
[1736097210446,0.6600263,3637.7,3637.6,4.40441958]
[1736097217862,0.6600263,3637.7,3637.6,0.4371]
[1736097219461,4.93553414,3637.7,3637.6,0.4371]
[1736097220159,4.93553414,3637.7,3637.6,0.68457]
[1736097220858,4.93553414,3637.7,3637.6,0.4371]
[1736097223367,4.68806414,3637.7,3637.6,0.68457]
[1736097224759,4.74208582,3637.8,3637.7,0.24747]
[1736097225065,4.98954582,3637.8,3637.7,1.68189229]
[1736097225964,4.98954582,3637.8,3637.7,5.64800681]
[1736097227364,4.98954582,3637.8,3637.7,12.12477208]
[1736097227569,4.98954582,3637.8,3637.7,11.87730208]
[1736097228971,4.98954582,3637.8,3637.7,12.12477208]
[1736097230067,4.98954582,3637.8,3637.7,13.19577208]
[1736097233071,4.98954582,3637.8,3637.7,6.71900681]
[1736097235473,0.6600163,3637.8,3637.7,11.94837979]
[1736097235875,0.6600163,3637.8,3637.7,11.51387979]
[1736097236075,1.3488163,3637.8,3637.7,11.51387979]
[1736097237371,5.67834582,3637.8,3637.7,5.03711452]
[1736097240172,5.67834582,3637.8,3637.7,5.39482076]
[1736097240173,1.1001163,3637.8,3637.7,5.39482076]
[1736097243477,1.1001163,3637.8,3637.7,4.32382076]
[1736097247581,5.43032948,3637.8,3637.7,3.96615108]
[1736097247777,5.43032948,3637.8,3637.7,4.96607337]
[1736097247983,4.99022948,3637.8,3637.7,4.96607337]
[1736097249378,4.99022948,3637.8,3637.7,11.69030864]
[1736097249685,4.99022948,3637.8,3637.7,11.44283864]
[1736097250281,4.99022948,3637.8,3637.7,11.69030864]
[1736097251882,4.99022948,3637.8,3637.7,11.44283864]
[1736097252883,4.99022948,3637.8,3637.7,11.69030864]
[1736097253480,4.99022948,3637.8,3637.7,11.44283864]
[1736097254384,4.99022948,3637.8,3637.7,11.69030864]
[1736097259090,4.99022948,3637.8,3637.7,5.21354337]
[1736097260294,4.99022948,3637.8,3637.7,11.69030864]
[1736097261001,4.99022948,3637.8,3637.7,10.69038635]
[1736097261502,4.99022948,3637.8,3637.7,4.57219014]
[1736097261503,0.6600163,3637.8,3637.7,4.57219014]
[1736097265700,4.93600507,3637.8,3637.7,4.57219014]
[1736097266902,10.33895166,3637.8,3637.7,4.57219014]
[1736097270006,0.6600163,3637.8,3637.7,4.21540207]
[1736097271401,4.99087195,3637.8,3637.7,10.69216734]
[1736097272608,0.6600163,3637.8,3637.7,4.21540207]
[1736097275216,0.4125563,3637.8,3637.7,4.21540207]
[1736097275510,0.6600163,3637.8,3637.7,4.21540207]
[1736097277713,4.93650397,3637.8,3637.7,4.57308342]
[1736097282318,10.33945056,3637.8,3637.7,4.57308342]
[1736097284221,10.33945056,3637.8,3637.7,5.01998342]
[1736097284517,0.6600163,3637.8,3637.7,4.66230142]
[1736097287136,4.99071568,3637.8,3637.7,11.13906669]
[1736097288324,0.6600163,3637.8,3637.7,4.66230142]
[1736097289326,0.6600163,3637.8,3637.7,5.06940142]
[1736097289519,0.24746,3637.8,3637.7,5.06940142]
[1736097291427,0.6600163,3637.8,3637.7,5.06940142]
[1736097292833,4.93642187,3637.8,3637.7,5.42703208]
[1736097298428,6.93626645,3637.8,3637.7,4.32556208]
[1736097298732,6.37674416,3637.8,3637.7,4.32556208]
[1736097298934,7.03124416,3637.8,3637.7,4.32556208]
[1736097299530,7.03124416,3637.8,3637.4,0.4188]
[1736097299531,0.24748,3637.5,3637.4,0.4188]
[1736097299831,1.24740229,3637.5,3637.4,0.4188]
[1736097301031,5.93636416,3637.5,3637.4,0.4188]
[1736097303936,1.65995859,3637.5,3637.4,0.4188]
[1736097304929,0.24749,3637.3,3637.2,4.32556208]
[1736097305336,0.2475,3637.2,3637.1,5.74468437]
[1736097306533,3.49207929,3637.2,3637.1,5.74468437]
[1736097307340,0.2475,3637.2,3637.1,5.74468437]
[1736097307535,3.4553,3637.2,3637.1,5.74468437]
[1736097307840,3.86791639,3637.2,3637.1,1.41912229]
[1736097309542,3.86791639,3637.2,3637.1,0.4192]
[1736097309843,3.62041639,3637.2,3637.0,0.4176]
[1736097310043,0.24751,3637.0,3636.9,4.84223421]
[1736097310644,0.24751,3637.0,3636.9,0.51667213]
[1736097311041,0.24752,3636.9,3636.8,4.32556208]
[1736097311346,1.91204229,3636.9,3636.8,2.43956208]
[1736097312346,1.91204229,3636.9,3636.2,1.43262229]
[1736097312347,0.24756,3636.3,3636.2,1.43262229]
[1736097314041,3.2078,3636.5,3636.4,0.24755]
[1736097314246,3.2078,3636.5,3636.4,1.24747229]
[1736097314647,3.45535,3636.5,3636.4,0.99992229]
[1736097315149,3.45535,3636.5,3636.4,1.85402229]
[1736097315448,0.24755,3636.5,3636.4,2.10157229]
[1736097315744,0.24755,3636.5,3636.4,1.85402229]
[1736097320846,0.24755,3636.5,3636.4,0.4264]
[1736097321546,0.24756,3636.3,3636.2,0.4327]
[1736097323537,0.99992229,3636.4,3636.0,3.6488]
[1736097323743,2.15899757,3636.5,3636.0,3.6488]
[1736097323744,1.24749229,3636.1,3636.0,0.441]
[1736097326650,1.24749229,3636.1,3636.0,0.8593]
[1736097326851,0.24758,3636.0,3635.9,0.4163]
[1736097335663,0.2476,3635.7,3635.6,0.8244]
[1736097342768,0.24762,3635.5,3635.4,3.45542]
[1736097342968,1.46305,3636.1,3635.4,4.31332]
[1736097342969,1.24753229,3635.6,3635.4,4.31332]
[1736097343670,3.00309757,3636.1,3635.4,5.06562229]
[1736097343871,0.24759,3635.9,3635.8,0.24759]
[1736097344970,0.99992229,3636.0,3635.5,0.4147]
[1736097344971,0.2476,3635.8,3635.7,0.2476]
[1736097345270,1.24752229,3635.8,3635.7,0.2476]
[1736097348071,0.99992229,3635.8,3635.7,0.2476]
[1736097349875,2.15899757,3636.1,3636.0,0.24758]
[1736097350069,3.23849636,3636.3,3636.0,0.99992229]
[1736097350270,3.23849636,3636.3,3636.2,1.24749229]
[1736097350671,3.23849636,3636.5,3636.2,0.99992229]
[1736097350880,3.23849636,3636.5,3636.4,1.24747229]
[1736097352372,1.24744229,3636.9,3636.7,0.24753]
[1736097353380,1.24744229,3636.9,3636.8,0.4398]
[1736097355076,4.48593865,3636.9,3636.8,0.4398]
[1736097357074,0.24756,3636.4,3636.2,0.24756]
[1736097357383,0.24756,3636.3,3636.2,0.435]
[1736097358185,0.99992229,3636.4,3636.1,6.47676527]
[1736097358480,2.10949229,3636.2,3636.1,6.47676527]
[1736097359478,5.51308835,3636.2,3635.9,8.64997926]
[1736097359679,0.2476,3635.8,3635.5,1.31861]
[1736097360074,0.2476,3635.8,3635.5,1.071]
[1736097360279,0.2476,3635.8,3635.6,0.24761]
[1736097360873,0.2476,3635.8,3635.4,12.16398756]
[1736097361081,0.2476,3635.8,3635.5,0.24761]
[1736097361380,0.99992229,3636.0,3635.4,5.68722229]
[1736097361581,0.2476,3635.8,3635.5,0.24761]
[1736097361982,0.2476,3635.7,3635.5,0.24761]
[1736097362582,0.2476,3635.8,3635.6,1.24753229]
[1736097364178,0.99992229,3636.0,3635.6,0.99992229]
[1736097364586,0.2476,3635.8,3635.6,0.99992229]
[1736097364979,0.2476,3635.8,3635.6,1.24753229]
[1736097365581,0.2476,3635.7,3635.6,1.24753229]
[1736097365979,0.2476,3635.7,3635.6,0.99992229]
[1736097366785,4.23841865,3636.0,3635.5,0.24762]
[1736097366986,0.2476,3635.7,3635.5,0.24762]
[1736097367682,0.2476,3635.7,3635.6,0.24761]
[1736097368277,0.99992229,3635.8,3635.4,4.6873]
[1736097368486,0.99992229,3635.8,3635.4,1.72712]
[1736097368686,0.24762,3635.5,3635.4,4.93492]
[1736097369285,0.24761,3635.6,3635.4,4.93492]
[1736097370386,0.24761,3635.6,3635.5,0.24762]
[1736097371483,0.99992229,3635.8,3635.4,4.6873]
[1736097371791,0.24761,3635.6,3635.5,0.24762]
[1736097372392,0.2476,3635.7,3635.6,0.24761]
[1736097372783,3.23849636,3636.0,3635.6,0.99992229]
[1736097373085,3.23849636,3636.0,3635.9,4.45531229]
[1736097374189,0.81789393,3636.0,3635.9,4.45531229]
[1736097374389,3.35219393,3636.7,3636.0,0.24758]
[1736097374693,0.14439393,3636.7,3636.5,0.24754]
[1736097375394,0.14439393,3636.7,3636.4,0.99992229]
[1736097375690,0.24754,3636.6,3636.4,1.24747229]
[1736097375891,1.24746229,3636.6,3636.4,1.24747229]
[1736097376787,0.24755,3636.5,3636.4,0.99992229]
[1736097377986,0.24755,3636.5,3636.4,1.24747229]
[1736097378788,1.24746229,3636.6,3636.4,1.24747229]
[1736097379289,0.99992229,3636.6,3636.4,0.99992229]
[1736097379495,0.24755,3636.5,3636.4,0.99992229]
[1736097380894,0.99992229,3636.6,3636.3,3.2078]
[1736097381092,0.24756,3636.3,3636.2,0.4483]
[1736097381595,0.8348,3636.3,3636.0,6.47676527]
[1736097381796,1.24749229,3636.1,3636.0,6.47676527]
[1736097382701,0.24758,3636.0,3635.9,1.071]
[1736097385693,2.21383675,3636.1,3635.6,0.4409]
[1736097385908,0.24761,3635.6,3635.5,6.47676527]
[1736097386987,0.24761,3635.6,3635.5,3.2078]
[1736097387994,0.24761,3635.6,3635.4,0.24762]
[1736097389204,0.65261,3635.7,3635.4,0.24762]
[1736097390502,0.24763,3635.3,3635.1,6.72440527]
[1736097390702,0.4228,3635.2,3635.1,6.47676527]
[1736097391502,1.09004,3635.2,3635.1,6.47676527]
[1736097391898,1.09004,3635.2,3634.9,3.2078]
[1736097391899,0.8424,3635.2,3634.9,3.2078]
[1736097392105,0.24765,3635.0,3634.9,3.2078]
[1736097392299,0.24766,3634.8,3634.7,6.47676527]
[1736097393806,3.2078,3635.0,3634.5,3.2078]
[1736097394004,0.69447,3634.7,3634.5,3.2078]
[1736097395106,0.4468,3634.7,3634.5,3.2078]
[1736097395300,0.4468,3634.7,3634.3,3.2078]
[1736097395497,0.24769,3634.4,3634.0,1.4937]
[1736097395698,0.4302,3634.3,3634.1,0.24771]
[1736097396302,0.4117,3634.2,3634.1,0.24771]
[1736097396905,0.4117,3634.2,3634.0,0.67042]
[1736097397307,0.4117,3634.2,3634.0,0.4227]
[1736097397500,0.4117,3634.2,3634.0,0.67041]
[1736097398406,0.4117,3634.2,3634.0,0.4227]
[1736097398799,0.4117,3634.2,3634.0,0.67041]
[1736097399101,0.4117,3634.2,3634.0,0.4227]
[1736097399302,0.4117,3634.2,3634.1,0.24771]
[1736097399804,0.4117,3634.2,3634.0,0.4227]
[1736097400108,0.4117,3634.2,3634.0,0.67041]
[1736097401002,0.4117,3634.2,3634.0,0.4227]
[1736097401307,0.4117,3634.2,3634.1,0.24771]
[1736097401805,0.24767,3634.8,3634.0,0.4227]
[1736097402006,1.12357,3634.8,3634.0,0.4227]
[1736097402209,7.88376442,3634.8,3634.5,0.24768]
[1736097402398,8.13143442,3634.8,3634.5,0.24768]
[1736097402605,1.12357,3634.8,3634.5,0.24768]
[1736097402810,0.8759,3634.8,3634.3,3.2078]
[1736097403115,3.45542,3635.5,3635.0,0.24765]
[1736097403412,0.8759,3635.6,3635.0,0.24765]
[1736097403613,0.8759,3635.6,3635.3,0.24763]
[1736097403819,0.8759,3635.6,3635.2,3.2078]
[1736097404109,1.12351,3635.6,3635.3,0.4207]
[1736097404715,1.12351,3635.6,3635.3,0.66832]
[1736097405007,0.8759,3635.6,3635.3,0.4207]
[1736097405204,0.8759,3635.6,3635.5,0.24762]
[1736097406313,0.8759,3635.6,3635.4,0.24762]
[1736097406514,1.12351,3635.6,3635.4,0.24762]
[1736097407812,1.12351,3635.6,3635.3,0.66833]
[1736097407813,0.24762,3635.5,3635.3,0.66833]
[1736097409316,0.8759,3635.6,3635.2,3.2078]
[1736097409515,0.4374,3635.5,3634.9,1.071]
[1736097409811,0.24765,3635.1,3634.9,1.071]
[1736097410015,0.4406,3635.0,3634.9,1.071]
[1736097410209,0.4406,3635.0,3634.9,1.31866]
[1736097413814,0.24763,3635.4,3634.9,1.071]
[1736097414116,0.24763,3635.3,3635.2,0.24763]
[1736097415112,0.24763,3635.3,3635.1,0.24764]
[1736097416019,0.4217,3635.4,3635.3,0.24763]
[1736097418916,0.4434,3635.6,3635.0,3.6148]
[1736097419116,0.69101,3635.6,3635.5,0.24762]
[1736097419916,0.69101,3635.6,3635.4,3.45542]
[1736097420608,0.69101,3635.6,3635.5,0.65482]
[1736097420812,0.69101,3635.6,3635.5,0.4072]
[1736097424128,0.24762,3635.5,3635.4,3.2078]
[1736097424425,0.24762,3635.5,3635.3,0.24763]
[1736097426518,0.24762,3635.4,3635.2,0.69103]
[1736097427531,0.24763,3635.3,3635.2,0.4434]
[1736097434125,0.8759,3635.6,3635.0,3.2078]
[1736097434327,0.24766,3634.9,3634.8,5.81349029]
[1736097434526,0.24766,3634.9,3634.8,4.72849029]
[1736097435729,0.24766,3634.9,3634.8,0.4191]
[1736097437833,0.24766,3634.9,3634.8,1.5041]
[1736097439835,0.24766,3634.9,3634.8,1.085]
[1736097442342,0.24766,3634.9,3634.8,1.33266]
[1736097443031,0.24765,3635.1,3634.9,0.24765]
[1736097443232,0.24765,3635.1,3635.0,1.41042975]
[1736097444140,3.24028844,3635.4,3635.3,0.24763]
[1736097444141,3.48791844,3635.4,3635.3,0.24763]
[1736097444639,0.24763,3635.4,3635.3,0.24763]
[1736097444829,3.24028844,3635.5,3635.2,0.99942975]
[1736097445027,3.24028844,3635.5,3635.4,4.45484975]
[1736097445237,3.24028844,3635.5,3635.4,5.4542795]
[1736097446236,3.24028844,3635.8,3635.7,0.2476]
[1736097446438,3.24028844,3635.8,3635.7,2.32802975]
[1736097447141,3.24028844,3635.8,3635.7,3.54187141]
[1736097447736,3.24028844,3636.2,3636.0,0.24758]
[1736097448038,0.24757,3636.1,3635.9,0.24758]
[1736097448734,3.48785844,3636.2,3636.0,0.24758]
[1736097448934,3.24028844,3636.1,3636.0,0.24758]
[1736097449136,3.48785844,3636.1,3636.0,0.24758]
[1736097450141,3.24028844,3636.1,3636.0,0.24758]
[1736097451646,3.24028844,3636.2,3636.0,0.24758]
[1736097451851,3.48785844,3636.2,3636.0,0.24758]
[1736097455353,3.24028844,3636.2,3635.8,3.2078]
[1736097455539,3.24028844,3636.2,3635.9,0.24758]
[1736097455540,0.24758,3636.1,3635.9,0.24758]
[1736097456446,0.24758,3636.1,3636.0,0.24758]
[1736097456644,3.24028844,3636.2,3635.8,3.2078]
[1736097456851,3.48785844,3636.2,3636.0,0.24758]
[1736097457046,0.24757,3636.2,3636.0,0.24758]
[1736097459147,3.68188844,3636.3,3635.8,3.2078]
[1736097460047,0.24757,3636.2,3636.0,0.24758]
[1736097460752,0.24757,3636.1,3636.0,0.24758]
[1736097460952,3.92945844,3636.3,3636.0,0.24758]
[1736097461149,0.24757,3636.2,3636.0,0.24758]
[1736097461649,0.24757,3636.1,3636.0,0.24758]
[1736097461951,0.24757,3636.2,3636.0,0.24758]
[1736097462149,0.24757,3636.1,3636.0,0.24758]
[1736097462741,0.24757,3636.2,3636.0,0.24758]
[1736097463152,0.24757,3636.1,3636.0,0.24758]
[1736097463655,3.68188844,3636.3,3636.0,0.24758]
[1736097463955,0.24757,3636.1,3636.0,0.24758]
[1736097466951,0.24757,3636.1,3636.0,1.24637245]
[1736097468058,3.24028844,3636.3,3636.2,0.24757]
[1736097468353,3.24028844,3636.3,3636.2,1.24636245]
[1736097468758,3.24028844,3636.3,3636.2,1.67776245]
[1736097470160,0.8445,3636.5,3636.4,0.24755]
[1736097470360,0.8445,3636.5,3636.4,2.32634245]
[1736097471561,5.45347215,3636.8,3636.4,3.0775849]
[1736097471758,2.15880388,3636.9,3636.7,4.20659245]
[1736097471953,2.15880388,3636.9,3636.8,0.24753]
[1736097473562,0.8419,3637.0,3636.9,0.24752]
[1736097474356,1.08941,3637.0,3636.8,0.24752]
[1736097474557,0.8419,3637.0,3636.9,0.24752]
[1736097492767,0.4214,3637.0,3636.9,0.24752]
[1736097493781,0.4111,3637.2,3637.1,0.24751]
[1736097496171,5.36660388,3637.5,3637.0,0.99830309]
[1736097496378,2.15880388,3637.5,3637.4,1.24579309]
[1736097497078,1.39548827,3637.6,3637.4,0.99830309]
[1736097497283,1.39548827,3637.6,3637.5,0.24748]
[1736097499181,1.39548827,3637.6,3637.5,1.24578309]
[1736097499986,1.39548827,3637.6,3637.5,0.24748]
[1736097503373,1.39548827,3637.6,3637.1,1.078]
[1736097503374,4.60328827,3637.6,3637.1,1.078]
[1736097503577,0.24752,3636.9,3636.8,4.31098851]
[1736097503789,1.24582309,3636.9,3636.8,4.31098851]
[1736097504085,0.24753,3636.7,3636.6,4.31098851]
[1736097504286,1.24583309,3636.7,3636.6,4.31098851]
[1736097504887,0.4303,3636.8,3636.7,0.24753]
[1736097505282,0.4227,3637.1,3637.0,0.24751]
[1736097505485,3.2078,3637.2,3637.1,0.24751]
[1736097506288,4.20610309,3637.2,3637.1,0.24751]
[1736097506598,3.2078,3637.2,3637.1,0.24751]
[1736097509289,3.4553,3637.2,3636.9,0.24751]
[1736097509478,3.2078,3637.2,3636.7,1.9026]
[1736097509683,3.4553,3637.2,3637.0,0.24751]
[1736097511285,5.61283579,3637.2,3637.0,0.24751]
[1736097512193,5.36533579,3637.2,3637.1,0.24751]
[1736097514992,2.15753579,3637.2,3637.1,0.24751]
[1736097515496,3.23630368,3637.3,3637.2,0.2475]
[1736097516594,0.4303,3637.4,3637.2,4.31098851]
[1736097516790,0.8687,3637.4,3637.3,0.24749]
[1736097517892,3.03037819,3637.4,3637.3,0.24749]
[1736097519697,0.8687,3637.4,3637.3,0.24749]
[1736097520592,0.8687,3637.4,3637.3,4.55847851]
[1736097521995,1.11619,3637.4,3637.3,4.31098851]
[1736097522801,1.11619,3637.4,3637.3,4.55847851]
[1736097523203,0.8687,3637.4,3637.3,0.24749]
[1736097525101,0.8687,3637.4,3637.3,4.55847851]
[1736097525697,0.8687,3637.4,3637.3,4.31098851]
[1736097525904,1.11619,3637.4,3637.3,4.31098851]
[1736097526097,1.11619,3637.4,3637.3,3.63808851]
[1736097526098,3.32836419,3637.4,3637.3,3.63808851]
[1736097526306,15.03789864,3637.4,3637.3,0.12168095]
[1736097526501,0.24749,3637.3,3637.2,5.92554622]
[1736097526694,0.24749,3637.3,3637.2,4.32974622]
[1736097527000,12.13189723,3637.3,3637.2,4.21054622]
[1736097527600,21.88546852,3637.3,3636.3,3.45536]
[1736097527796,0.24755,3636.5,3636.3,3.45536]
[1736097528798,0.24755,3636.6,3636.4,0.24755]
[1736097528999,2.16185137,3636.5,3636.4,0.24755]
[1736097530401,2.16185137,3636.6,3636.4,0.66865]
[1736097530600,2.16185137,3636.6,3636.5,0.24755]
[1736097532003,0.24753,3636.7,3636.5,0.24755]
[1736097532004,2.40938137,3636.7,3636.5,0.24755]
[1736097532802,2.16185137,3636.7,3636.6,0.24754]
[1736097533402,2.40939137,3636.7,3636.5,0.24755]
[1736097533706,2.16185137,3636.7,3636.4,0.4211]
[1736097534205,2.40939137,3636.7,3636.5,0.24755]
[1736097534600,2.16185137,3636.7,3636.4,0.4211]
[1736097534904,0.24755,3636.4,3636.3,3.2078]
[1736097536503,3.2078,3636.4,3635.9,1.2687]
[1736097536708,0.24758,3636.1,3635.9,1.51629]
[1736097537306,0.24757,3636.2,3635.9,1.51629]
[1736097537506,0.24757,3636.2,3636.0,0.24758]
[1736097538111,2.16185137,3636.1,3636.0,0.24758]
[1736097539010,2.40942137,3636.2,3636.0,0.24758]
[1736097540708,0.24757,3636.2,3636.0,0.24758]
[1736097541009,2.16185137,3636.3,3635.9,1.2687]
[1736097541010,2.40941137,3636.3,3636.1,0.24757]
[1736097541209,2.40941137,3636.3,3635.9,1.2687]
[1736097541411,2.40941137,3636.3,3636.1,0.24757]
[1736097541816,2.40941137,3636.3,3636.2,0.24757]
[1736097542013,2.40941137,3636.3,3635.9,1.2687]
[1736097542214,2.40941137,3636.3,3636.1,0.24757]
[1736097542414,2.16185137,3636.3,3635.9,1.2687]
[1736097542612,2.16185137,3636.3,3636.2,0.24757]
[1736097543018,2.16185137,3636.3,3635.9,1.2687]
[1736097543319,0.24757,3636.2,3636.0,0.24758]
[1736097546820,0.24757,3636.2,3636.1,0.24757]
[1736097549623,0.24757,3636.2,3636.0,0.24758]
[1736097550123,5.36965137,3636.4,3636.0,0.24758]
[1736097550324,0.24757,3636.1,3636.0,0.24758]
[1736097550728,0.24757,3636.1,3635.9,1.2687]
[1736097550729,0.24757,3636.2,3636.1,0.24757]
[1736097550920,0.24757,3636.2,3636.0,0.24758]
[1736097551923,0.24757,3636.2,3635.9,1.2687]
[1736097552123,5.36965137,3636.4,3635.9,1.2687]
[1736097552324,0.24758,3636.0,3635.9,1.2687]
[1736097553928,0.24758,3636.0,3635.9,0.852]
[1736097554229,3.45538,3636.0,3635.9,0.852]
[1736097555422,5.61723137,3636.0,3635.9,0.852]
[1736097556822,3.45538,3636.0,3635.9,0.852]
[1736097561925,3.45538,3636.0,3635.5,0.24761]
[1736097561926,3.82677,3636.0,3635.2,0.24764]
[1736097562226,0.24762,3635.4,3635.3,1.2459]
[1736097568428,0.24762,3635.4,3635.3,1.49353]
[1736097568629,0.24762,3635.4,3635.3,1.2459]
[1736097570029,2.21217419,3635.5,3634.6,0.24767]
[1736097570229,0.24767,3634.8,3634.7,0.4055]
[1736097574143,5.36965137,3635.2,3634.7,0.4055]
[1736097574144,0.24766,3634.9,3634.7,0.4055]
[1736097574343,0.24766,3634.8,3634.7,0.4055]
[1736097574940,0.24766,3634.9,3634.7,0.4055]
[1736097575237,0.24766,3634.9,3634.7,0.65317]
[1736097578546,5.36965137,3635.2,3634.7,0.4055]
[1736097579043,0.24766,3634.9,3634.7,0.65317]
[1736097580349,0.24764,3635.1,3634.7,0.4055]
[1736097580552,0.24766,3634.9,3634.7,0.4055]
[1736097581643,2.16185137,3635.2,3634.7,0.4055]
[1736097581949,0.24766,3634.8,3634.7,0.4055]
[1736097585150,0.24766,3634.9,3634.7,0.65317]
[1736097585449,0.24766,3634.8,3634.7,0.65317]
[1736097586945,0.24766,3634.8,3634.7,0.4055]
[1736097587148,0.24766,3634.8,3634.7,0.65317]
[1736097587648,2.16185137,3635.2,3634.7,0.4055]
[1736097587847,0.24765,3635.0,3634.9,0.24765]
[1736097591553,0.24765,3635.1,3635.0,0.24765]
[1736097591753,0.24765,3635.0,3634.9,0.24765]
[1736097593557,2.16185137,3635.2,3635.1,0.24764]
[1736097593747,2.16185137,3635.2,3635.1,1.24720287]
[1736097594157,2.16185137,3635.2,3635.1,1.68920287]
[1736097594360,6.45057706,3635.3,3635.2,0.24764]
[1736097595357,6.69820706,3635.3,3635.2,0.24764]
[1736097595753,3.2078,3635.3,3635.2,0.24764]
[1736097595952,2.40804382,3635.4,3635.2,0.24764]
[1736097596750,2.40804382,3635.4,3635.1,1.44156287]
[1736097596960,2.16042382,3635.4,3635.3,1.24719287]
[1736097597262,4.20736287,3635.7,3635.3,1.24719287]
[1736097597263,2.40804382,3635.5,3635.3,1.24719287]
[1736097597459,2.16042382,3635.5,3635.4,0.24762]
[1736097598565,2.16042382,3635.6,3635.3,0.99956287]
[1736097598758,2.16042382,3635.6,3635.1,1.514]
[1736097598759,2.16042382,3635.6,3635.5,1.24718287]
[1736097600058,0.24761,3635.6,3635.5,0.99956287]
[1736097600258,6.69818706,3635.7,3635.5,1.24717287]
[1736097600464,6.69818706,3635.7,3635.6,0.875]
[1736097600761,6.69818706,3635.7,3635.6,1.3234]
[1736097601661,6.45057706,3635.7,3635.6,1.57101]
[1736097602559,6.69817706,3635.7,3635.6,1.57101]
[1736097603063,5.61762076,3635.7,3635.6,1.57101]
[1736097603761,5.37002076,3635.7,3635.6,1.57101]
[1736097604353,3.2078,3635.7,3635.6,1.57101]
[1736097605866,3.49037706,3635.8,3635.6,1.57101]
[1736097606474,2.16211455,3635.7,3635.6,1.57101]
[1736097608270,2.16211455,3635.7,3635.6,1.3234]
[1736097608571,2.40971455,3635.7,3635.6,1.3234]
[1736097609168,2.40971455,3635.7,3635.6,1.57101]
[1736097611167,3.40927742,3635.7,3635.6,1.3234]
[1736097614868,3.40927742,3635.7,3635.6,1.57101]
[1736097615266,2.40971455,3635.7,3635.6,1.57101]
[1736097615676,2.16211455,3635.7,3635.6,1.57101]
[1736097617978,0.2476,3635.8,3635.7,0.2476]
[1736097617979,2.40971455,3635.8,3635.7,0.2476]
[1736097620270,2.16211455,3635.8,3635.6,1.3234]
[1736097620471,0.2476,3635.7,3635.6,1.57101]
[1736097621172,0.24763,3635.4,3635.2,3.45543]